lending/lending_fUSD_20250920
["ID","MTS","AMOUNT","RATE_DAILY","PERIOD"]
[386578525,1758408633614,-151.0,0.00019988,2]
[386578526,1758408633623,-151.0,0.00019988,2]
[386578527,1758408633633,-500.0,0.00019988,2]
[386578528,1758408633643,-200.0,0.00019988,2]
[386578529,1758408633653,-151.0,0.00019988,2]
[386578530,1758408633662,-151.0,0.00019988,2]
[386578531,1758408633672,-151.0,0.00019988,2]
[386578532,1758408633682,-500.0,0.00019988,2]
[386578533,1758408633691,-500.0,0.00019988,2]
[386578534,1758408633700,-500.0,0.00019988,2]
[386578535,1758408633710,-500.0,0.00019988,2]
[386578536,1758408633719,-500.0,0.00019988,2]
[386578537,1758408633728,-500.0,0.00019988,2]
[386578538,1758408633738,-500.0,0.00019988,2]
[386578539,1758408633747,-500.0,0.00019988,2]
[386578540,1758408633757,-151.0,0.00019988,2]
[386578541,1758408633769,-500.0,0.00019988,2]
[386578542,1758408633778,-212.30244649,0.00019988,2]
[386578543,1758408633787,-151.0,0.00019997,2]
[386578544,1758408633797,-151.0,0.00019997,2]
[386578545,1758408633806,-151.0,0.00019997,2]
[386578546,1758408633816,-1000.0,0.00019999,2]
[386578547,1758408633825,-381.99,0.00019999,2]
[386578548,1758408633835,-279764.05185879,0.0002,2]
[386578549,1758408633849,-356830.521,0.0002,2]
[386578550,1758408633862,-30861.39924561,0.0002,2]
[386578551,1758408633873,-9741.62262582,0.0002,2]
[386578552,1758408633900,-80056.96155523,0.0002,2]
[386578553,1758408633909,-544.48731084,0.0002,5]
[386578554,1758408633919,-1029.13877916,0.0002,2]
[386578555,1758408633927,-2819.4946404,0.0002,2]
[386578556,1758408633937,-90643.83026293,0.0002,2]
[386578557,1758408633946,-904.08716357,0.0002,2]
[386578558,1758408633955,-4980.1568998,0.0002,2]
[386578559,1758408633965,-1693.54,0.0002,2]
[386578560,1758408633974,-1067.6314407,0.0002,2]
[386578561,1758408633983,-169.73,0.0002,2]
[386578562,1758408633992,-169.73,0.0002,2]
[386578563,1758408634002,-500.0,0.0002,2]
[386578564,1758408634013,-2909.943123,0.0002,2]
[386578565,1758408634022,-4616.1053768,0.0002,2]
[386578566,1758408634032,-5587.9545022,0.0002,2]
[386578567,1758408634042,-500.0,0.0002,2]
[386578568,1758408634052,-500.0,0.0002,2]
[386578569,1758408634061,-500.0,0.0002,2]
[386578570,1758408634070,-500.0,0.0002,2]
[386578571,1758408634079,-500.0,0.0002,2]
[386578572,1758408634090,-500.0,0.0002,2]
[386578573,1758408634099,-500.0,0.0002,2]
[386578574,1758408634108,-500.0,0.0002,2]
[386578575,1758408634117,-508.19736573,0.0002,2]
[386578576,1758408634126,-500.0,0.0002,2]
[386578577,1758408634136,-500.0,0.0002,2]
[386578578,1758408634145,-500.0,0.0002,2]
[386578579,1758408634154,-152.91,0.0002,2]
[386578580,1758408634164,-151.82,0.0002,2]
[386578581,1758408634173,-524.81,0.0002,2]
[386578582,1758408634182,-151.75,0.0002,2]
[386578583,1758408634192,-151.84,0.0002,2]
[386578584,1758408634201,-152.24,0.0002,2]
[386578585,1758408634211,-525.28,0.0002,2]
[386578586,1758408634220,-152.3,0.0002,2]
[386578587,1758408634229,-151.59,0.0002,2]
[386578588,1758408634240,-529.84,0.0002,2]
[386578589,1758408634250,-151.57,0.0002,2]
[386578590,1758408634259,-150.82,0.0002,2]
[386578591,1758408634268,-152.71,0.0002,2]
[386578592,1758408634277,-531.09,0.0002,2]
[386578593,1758408634287,-151.42,0.0002,2]
[386578594,1758408634296,-152.88,0.0002,2]
[386578595,1758408634306,-517.27,0.0002,2]
[386578596,1758408634315,-151.54,0.0002,2]
[386578597,1758408634325,-526.31,0.0002,2]
[386578598,1758408634334,-534.62,0.0002,2]
[386578599,1758408634344,-156.587,0.00020043,2]
[386578600,1758408634353,-200.0,0.00020062,2]
[386578601,1758408634363,-151.0,0.00020098,2]
[386578602,1758408634373,-200.0,0.00020178,2]
[386578603,1758408634382,-500.0,0.00020274,2]
[386578604,1758408634391,-1090.64554354,0.00020434,2]
[386578605,1758408634400,-3749.79901216,0.00020434,2]
[386578606,1758408634409,-239.60428863,0.00020448,2]
[386578607,1758408634418,-500.0,0.00020548,2]
[386578608,1758408634428,-500.0,0.00020548,2]
[386578609,1758408634437,-517.19946058,0.00020548,2]
[386578610,1758408634446,-1000.0,0.00020548,2]
[386578611,1758408634455,-972.70566136,0.00020548,2]
[386578612,1758408634465,-601.32921316,0.00020548,2]
[386578613,1758408634474,-1000.0,0.00020548,2]
[386578614,1758408634483,-1000.0,0.00020548,2]
[386578615,1758408634492,-1000.0,0.00020548,2]
[386578616,1758408634502,-1000.0,0.00020548,2]
[386578617,1758408634511,-297.59944755,0.00020555,2]
[386578618,1758408634520,-420.0,0.00020745,2]
[386578619,1758408634529,-319.47238484,0.000208,2]
[386578620,1758408634538,-239.60428863,0.000208,2]
[386578621,1758408634547,-500.0,0.00020822,2]
[386578622,1758408634557,-1680.0,0.00020846,2]
[386578623,1758408634566,-1090.64554354,0.00020969,2]
[386578624,1758408634575,-3749.79901216,0.00020969,2]
[386578625,1758408634584,-659.0,0.00020986,2]
[386578626,1758408634593,-961.33,0.00020986,2]
[386578627,1758408634603,-2597.72125703,0.00021,2]
[386578628,1758408634612,-500.0,0.00021096,2]
[386578629,1758408634621,-1500.0,0.00021096,2]
[386578630,1758408634631,-1500.0,0.00021096,2]
[386578631,1758408634640,-1417.25488486,0.00021096,2]
[386578632,1758408634649,-169.73,0.000211,2]
[386578633,1758408634658,-2000.0,0.00021122,3]
[386578634,1758408634668,-2500.0,0.00021122,2]
[386578635,1758408634679,-169.73,0.000213,2]
[386578636,1758408634687,-500.0,0.0002137,2]
[386578637,1758408634696,-163.82234716,0.00021475,2]
[386578638,1758408634706,-1090.64554354,0.00021503,2]
[386578639,1758408634715,-3749.79901216,0.00021503,2]
[386578640,1758408634724,-174.83,0.00021578,2]
[386578641,1758408634733,-151.93,0.00021642,2]
[386578642,1758408634743,-160.6,0.00021644,2]
[386578643,1758408634752,-1516.88241041,0.00021644,2]
[386578644,1758408634761,-2000.0,0.00021644,2]
[386578645,1758408634774,-322.6107,0.00021665,2]
[386578646,1758408634783,-151.0,0.00021665,2]
[386578647,1758408634792,-285.16739537,0.00021665,2]
[386578648,1758408634801,-151.0,0.00021665,2]
[386578649,1758408634811,-601.3376128,0.00021665,2]
[386578650,1758408634820,-231.28369723,0.00021665,2]
[386578651,1758408634829,-184.98,0.00021684,2]
[386578652,1758408634839,-961.33,0.00021773,2]
[386578653,1758408634849,-169.73,0.000219,2]
[386578654,1758408634859,-5000.0,0.00021918,2]
[386578655,1758408634870,-1090.64554354,0.00022038,2]
[386578656,1758408634879,-3749.79901216,0.00022038,2]
[386578657,1758408635167,-212.0,0.000221,2]
[386578658,1758408635183,-6120.0,0.00022108,2]
[386578659,1758408635193,-823.577,0.00022108,2]
[386578660,1758408635203,-4174.0,0.00022108,2]
[386578661,1758408635213,-1178.0,0.00022108,2]
[386578662,1758408635224,-600.0,0.0002211,2]
[386578663,1758408635235,-150.0,0.00022167,4]
[386578664,1758408635244,-150.0,0.00022167,4]
[386578665,1758408635255,-150.0,0.00022167,4]
[386578666,1758408635264,-150.0,0.00022167,4]
[386578667,1758408635273,-150.0,0.00022167,4]
[386578668,1758408635283,-295.44474476,0.00022167,4]
[386578669,1758408635293,-150.0,0.00022167,4]
[386578670,1758408635302,-279.75235124,0.00022167,4]
[386578671,1758408635311,-150.5757555,0.00022167,4]
[386578672,1758408635321,-150.0,0.00022167,4]
[386578673,1758408635330,-150.0,0.00022167,4]
[386578674,1758408635339,-150.0,0.00022167,4]
[386578675,1758408635350,-150.0,0.00022167,4]
[386578676,1758408635359,-150.0,0.00022167,4]
[386578677,1758408635368,-2500.0,0.00022192,2]
[386578678,1758408635377,-500.0,0.00022192,8]
[386578679,1758408635387,-500.0,0.00022192,8]
[386578680,1758408635397,-500.0,0.00022192,8]
[386578681,1758408635407,-500.0,0.00022192,8]
[386578682,1758408635417,-500.0,0.00022192,8]
[386578683,1758408635426,-500.0,0.00022192,8]
[386578684,1758408635435,-500.0,0.00022192,8]
[386578685,1758408635445,-500.0,0.00022192,8]
[386578686,1758408635454,-151.0,0.00022213,2]
[386578687,1758408635463,-151.0,0.00022213,2]
[386578688,1758408635473,-748.34220605,0.00022228,2]
[386578689,1758408635482,-1111.2232066,0.00022535,2]
[386578690,1758408635491,-1029.9923319,0.00022535,2]
[386578691,1758408635501,-1246.8411829,0.00022535,2]
[386578692,1758408635510,-961.33,0.0002256,2]
[386578693,1758408635519,-1090.64554354,0.00022572,2]
[386578694,1758408635529,-3749.79901216,0.00022572,2]
[386578695,1758408635538,-587.0,0.00022611,2]
[386578696,1758408635548,-600.0,0.00022658,2]
[386578697,1758408635558,-3000.0,0.0002274,2]
[386578698,1758408635567,-230.3281583,0.00022761,2]
[386578699,1758408635576,-2351.0,0.00022831,2]
[386578700,1758408635586,-165.0,0.00023,5]
[386578701,1758408635595,-160.0,0.00023,2]
[386578702,1758408635604,-3019.62027748,0.00023,2]
[386578703,1758408635613,-160.0,0.00023,2]
[386578704,1758408635622,-151.0,0.00023018,2]
[386578705,1758408635632,-376.34528519,0.00023034,2]
[386578706,1758408635642,-163.82234716,0.00023051,2]
[386578707,1758408635651,-247.947412,0.00023101,2]
[386578708,1758408635660,-229.8223539,0.00023101,2]
[386578709,1758408635669,-278.2078728,0.00023101,2]
[386578710,1758408635679,-1090.64554354,0.00023107,2]
[386578711,1758408635688,-3749.79901216,0.00023107,2]
[386578712,1758408635697,-600.0,0.00023206,2]
[386578713,1758408635706,-207.0,0.0002328,2]
[386578714,1758408635715,-3500.0,0.00023288,2]
[386578715,1758408635725,-1051.92203406,0.000233,2]
[386578716,1758408635734,-961.33,0.00023347,2]
[386578717,1758408635744,-151.0,0.00023428,2]
[386578718,1758408635754,-193.11,0.00023618,2]
[386578719,1758408635763,-1090.64554354,0.00023641,2]
[386578720,1758408635777,-3749.79901216,0.00023641,2]
[386578721,1758408635786,-1609.7,0.00023644,2]
[386578722,1758408635801,-185.0,0.00023688,2]
[386578723,1758408635811,-600.0,0.00023754,2]
[386578724,1758408635820,-727.89136842,0.000238,2]
[386578725,1758408635835,-908.0,0.00023816,2]
[386578726,1758408635845,-4000.0,0.00023836,2]
[386578727,1758408635855,-151.0,0.00023838,2]
[386578728,1758408635864,-1355.37,0.0002389,7]
[386578729,1758408635873,-1355.37,0.0002389,7]
[386578730,1758408635883,-1355.37,0.0002389,7]
[386578731,1758408635892,-1355.37,0.0002389,7]
[386578732,1758408635901,-1100.0,0.000239,8]
[386578733,1758408635911,-168.0,0.00023911,2]
[386578734,1758408635920,-1513.0,0.00023941,2]
[386578735,1758408635929,-151.0,0.00023997,7]
[386578736,1758408635938,-800.0,0.00024,2]
[386578737,1758408635948,-60000.31407872,0.00024,2]
[386578738,1758408635957,-1003.3682561,0.00024,2]
[386578739,1758408635966,-338.87391134,0.00024,2]
[386578740,1758408635977,-3019.62027748,0.00024,7]
[386578741,1758408635990,-160.0,0.00024,7]
[386578742,1758408635999,-5297.7493179,0.000241,2]
[386578743,1758408636009,-1574.7048941,0.00024122,2]
[386578744,1758408636019,-1477.2289794,0.00024122,2]
[386578745,1758408636028,-2419.5331703,0.00024122,2]
[386578746,1758408636037,-961.33,0.00024134,2]
[386578747,1758408636047,-1355.37,0.00024164,7]
[386578748,1758408636056,-1355.37,0.00024164,7]
[386578749,1758408636066,-1090.64554354,0.00024176,2]
[386578750,1758408636075,-3749.79901216,0.00024176,2]
[386578752,1758408636085,-1513.0,0.00024188,2]
[386578753,1758408636094,-414.78537833,0.0002421,2]
[386578754,1758408636104,-3634.03878248,0.0002421,2]
[386578755,1758408636113,-151.0,0.00024247,2]
[386578756,1758408636122,-727.89136839,0.00024292,2]
[386578757,1758408636131,-15000.0,0.000243,2]
[386578758,1758408636140,-600.0,0.00024302,2]
[386578759,1758408636154,-4500.0,0.00024384,2]
[386578760,1758408636163,-541.0,0.00024384,2]
[386578761,1758408636173,-500.0,0.00024384,2]
[386578762,1758408636182,-500.0,0.00024384,2]
[386578763,1758408636192,-150.0,0.00024384,2]
[386578764,1758408636201,-500.0,0.00024384,2]
[386578765,1758408636210,-150.0,0.00024384,2]
[386578766,1758408636219,-720.0,0.00024384,2]
[386578767,1758408636229,-500.0,0.00024384,2]
[386578768,1758408636239,-500.0,0.00024384,2]
[386578769,1758408636248,-500.0,0.00024384,2]
[386578770,1758408636257,-1666.0,0.00024384,2]
[386578771,1758408636267,-1513.0,0.00024434,2]
[386578772,1758408636276,-1355.37,0.00024438,7]
[386578773,1758408636286,-1355.37,0.00024438,7]
[386578774,1758408636295,-203.0,0.0002447,2]
[386578775,1758408636305,-1700.0,0.000245,8]
[386578776,1758408636314,-1061.1077,0.00024534,2]
[386578777,1758408636324,-2000.0,0.00024534,2]
[386578778,1758408636334,-382.80929737,0.0002454,7]
[386578779,1758408636343,-748.34220605,0.00024556,2]
[386578780,1758408636352,-471.13490993,0.00024557,2]
[386578781,1758408636362,-691.8205142,0.00024557,2]
[386578782,1758408636371,-2300.0,0.000246,8]
[386578783,1758408636380,-210.85082687,0.000246,2]
[386578784,1758408636390,-163.82234716,0.00024626,2]
[386578785,1758408636399,-4770.0,0.0002463,2]
[386578786,1758408636409,-150.0,0.00024632,2]
[386578787,1758408636418,-256.92019905,0.00024633,2]
[386578788,1758408636427,-327.44731251,0.00024635,2]
[386578789,1758408636437,-397.97442597,0.00024636,2]
[386578790,1758408636447,-468.50153944,0.00024638,2]
[386578791,1758408636456,-539.0286529,0.0002464,2]
[386578792,1758408636465,-609.55576637,0.00024641,2]
[386578793,1758408636475,-680.08287983,0.00024643,2]
[386578794,1758408636484,-750.60999329,0.00024645,2]
[386578795,1758408636493,-823.0,0.00024645,2]
[386578796,1758408636502,-821.13710676,0.00024646,2]
[386578797,1758408636511,-214.0,0.0002465,2]
[386578798,1758408636520,-2229.16885275,0.00024655,2]
[386578799,1758408636530,-300.0,0.00024656,2]
[386578800,1758408636539,-151.0,0.00024656,7]
[386578801,1758408636548,-151.0,0.00024656,7]
[386578802,1758408636558,-152.831697,0.00024656,7]
[386578803,1758408636567,-151.0,0.00024656,7]
[386578804,1758408636577,-151.0,0.00024656,7]
[386578805,1758408636586,-151.0,0.00024656,7]
[386578806,1758408636595,-151.0,0.00024656,7]
[386578807,1758408636604,-151.0,0.00024656,7]
[386578808,1758408636614,-151.0,0.00024656,7]
[386578809,1758408636625,-151.0,0.00024656,7]
[386578810,1758408636636,-151.0,0.00024656,7]
[386578811,1758408636648,-189.346406,0.00024656,7]
[386578812,1758408636660,-151.0,0.00024656,7]
[386578813,1758408636670,-151.0,0.00024656,7]
[386578814,1758408636679,-151.0,0.00024656,7]
[386578815,1758408636689,-151.0,0.00024656,7]
[386578816,1758408636698,-151.0,0.00024656,7]
[386578817,1758408636709,-155.074526,0.00024656,7]
[386578818,1758408636720,-151.0,0.00024656,7]
[386578819,1758408636732,-151.0,0.00024656,7]
[386578820,1758408636742,-151.0,0.00024656,7]
[386578821,1758408636752,-151.0,0.00024656,7]
[386578822,1758408636762,-151.0,0.00024656,7]
[386578823,1758408636775,-151.0,0.00024656,7]
[386578824,1758408636786,-151.0,0.00024656,7]
[386578825,1758408636795,-259.218186,0.00024656,7]
[386578826,1758408636805,-151.0,0.00024656,7]
[386578827,1758408636815,-151.0,0.00024656,7]
[386578828,1758408636826,-151.0,0.00024656,7]
[386578829,1758408636836,-151.0,0.00024656,7]
[386578830,1758408636849,-151.0,0.00024656,7]
[386578831,1758408636859,-151.0,0.00024656,7]
[386578832,1758408636869,-151.0,0.00024656,7]
[386578833,1758408636879,-151.0,0.00024656,7]
[386578834,1758408636889,-151.0,0.00024656,7]
[386578835,1758408636898,-151.0,0.00024656,7]
[386578836,1758408636907,-151.0,0.00024656,7]
[386578837,1758408636917,-151.0,0.00024656,7]
[386578838,1758408636926,-221.1098,0.00024656,7]
[386578839,1758408636936,-151.0,0.00024656,7]
[386578840,1758408636945,-151.0,0.00024656,7]
[386578841,1758408636955,-151.0,0.00024656,7]
[386578842,1758408636964,-151.0,0.00024656,7]
[386578843,1758408636974,-151.0,0.00024656,7]
[386578844,1758408636983,-226.508513,0.00024656,7]
[386578845,1758408636992,-12000.0,0.00024656,7]
[386578846,1758408637002,-151.0,0.00024656,7]
[386578847,1758408637014,-151.0,0.00024656,7]
[386578848,1758408637025,-12000.0,0.00024656,7]
[386578849,1758408637036,-292.879336,0.00024656,7]
[386578850,1758408637046,-151.0,0.00024656,7]
[386578851,1758408637057,-151.0,0.00024656,7]
[386578852,1758408637068,-151.0,0.00024656,7]
[386578853,1758408637080,-151.0,0.00024656,7]
[386578854,1758408637091,-151.623335,0.00024656,7]
[386578855,1758408637101,-151.623335,0.00024656,7]
[386578856,1758408637112,-151.623335,0.00024656,7]
[386578857,1758408637122,-151.623335,0.00024656,7]
[386578858,1758408637133,-151.0,0.00024656,7]
[386578859,1758408637142,-151.0,0.00024656,7]
[386578860,1758408637154,-151.0,0.00024656,7]
[386578861,1758408637165,-151.0,0.00024656,7]
[386578862,1758408637175,-151.0,0.00024656,7]
[386578863,1758408637185,-151.0,0.00024656,7]
[386578864,1758408637196,-898.755544,0.00024656,7]
[386578865,1758408637205,-151.0,0.00024656,7]
[386578866,1758408637216,-898.755544,0.00024656,7]
[386578867,1758408637226,-898.755544,0.00024656,7]
[386578868,1758408637236,-898.755544,0.00024656,7]
[386578869,1758408637245,-369.74591,0.00024656,7]
[386578870,1758408637255,-369.74591,0.00024656,7]
[386578871,1758408637265,-284.520024,0.00024656,7]
[386578872,1758408637275,-369.74591,0.00024656,7]
[386578873,1758408637284,-369.74591,0.00024656,7]
[386578874,1758408637294,-151.0,0.00024656,7]
[386578875,1758408637303,-151.0,0.00024656,7]
[386578876,1758408637312,-151.0,0.00024656,7]
[386578877,1758408637323,-151.0,0.00024656,7]
[386578878,1758408637332,-151.0,0.00024656,7]
[386578879,1758408637343,-151.0,0.00024656,7]
[386578880,1758408637353,-478.482438,0.00024656,7]
[386578881,1758408637364,-151.0,0.00024656,7]
[386578882,1758408637374,-478.482438,0.00024656,7]
[386578883,1758408637383,-151.0,0.00024656,7]
[386578884,1758408637393,-478.482438,0.00024656,7]
[386578885,1758408637403,-151.0,0.00024656,7]
[386578886,1758408637412,-478.482438,0.00024656,7]
[386578887,1758408637422,-300.0,0.00024656,2]
[386578888,1758408637432,-523.8,0.00024657,2]
[386578889,1758408637444,-1009.42253537,0.00024657,2]
[386578890,1758408637453,-144378.92370265,0.00024657,2]
[386578891,1758408637546,-500.0,0.00022108,2]
[386578892,1758408637558,-287.44003504,0.00022108,2]
[386578893,1758408637570,-110.55996496,0.00022108,2]
[386578894,1758408637580,-357.41003504,0.00024657,2]
[386578895,1758408637616,-1425.88347486,0.00024657,2]
[386578896,1758408640147,-304.20130994,0.00022,2]
[386578897,1758408640160,-815.69869006,0.00022,2]
[386578898,1758408640171,-1119.9,0.00023795,2]
[386578899,1758408640180,-4995.84042341,0.00024657,2]
[386578900,1758408641246,-267.3078231,0.00019033,2]
[386578901,1758408641256,-212.58355617,0.00019033,2]
[386578902,1758408641266,-617.68627343,0.00019033,2]
[386578903,1758408641275,-4229.0,0.00022108,2]
[386578904,1758408641284,-870710.49343956,0.00024657,2]
[386578905,1758408641350,-6475.85395663,0.00024657,2]
[386578906,1758408641359,-13886.59604337,0.00024657,2]
[386578907,1758408641418,-343.74550876,0.00024657,2]
[386578918,1758408644858,-83.01639057,0.00024657,2]
[386578919,1758408647250,-43678.05062034,0.00024657,2]
[386578920,1758408647260,-150.59,0.00024657,2]
[386578921,1758408647270,-160.0,0.00024657,7]
[386578922,1758408647280,-160.0,0.00024657,3]
[386578923,1758408647289,-495.46258,0.00024657,3]
[386578924,1758408647299,-150.069019,0.00024657,3]
[386578925,1758408647309,-181.749416,0.00024657,3]
[386578926,1758408647318,-152.481513,0.00024657,3]
[386578927,1758408647327,-174.717894,0.00024657,3]
[386578928,1758408647337,-481.706471,0.00024657,3]
[386578929,1758408647346,-170.852514,0.00024657,3]
[386578930,1758408647355,-182.049225,0.00024657,3]
[386578931,1758408647365,-151.944251,0.00024657,3]
[386578932,1758408647374,-3019.62027748,0.00024657,7]
[386578933,1758408647384,-160.0,0.00024657,7]
[386578934,1758408647394,-400.0,0.00024657,3]
[386578935,1758408647404,-400.0,0.00024657,3]
[386578936,1758408647414,-400.0,0.00024657,3]
[386578937,1758408647423,-400.0,0.00024657,3]
[386578938,1758408647433,-400.0,0.00024657,3]
[386578939,1758408647442,-400.0,0.00024657,3]
[386578940,1758408647451,-400.0,0.00024657,3]
[386578941,1758408647461,-400.0,0.00024657,3]
[386578942,1758408647471,-400.0,0.00024657,3]
[386578943,1758408647480,-400.0,0.00024657,3]
[386578944,1758408647489,-400.0,0.00024657,3]
[386578945,1758408647499,-264.67720764,0.00024657,3]
[386578946,1758408647508,-400.0,0.00024657,3]
[386578947,1758408647518,-400.0,0.00024657,3]
[386578948,1758408647527,-400.0,0.00024657,3]
[386578949,1758408647536,-400.0,0.00024657,3]
[386578950,1758408647546,-400.0,0.00024657,3]
[386578951,1758408647822,-400.0,0.00024657,3]
[386578952,1758408647834,-400.0,0.00024657,3]
[386578953,1758408647844,-400.0,0.00024657,3]
[386578954,1758408647855,-400.0,0.00024657,3]
[386578955,1758408647867,-400.0,0.00024657,3]
[386578956,1758408647877,-500.0,0.00024657,2]
[386578957,1758408647887,-400.0,0.00024657,3]
[386578958,1758408647897,-400.0,0.00024657,3]
[386578959,1758408647907,-400.0,0.00024657,3]
[386578960,1758408647917,-150.0,0.00024657,2]
[386578961,1758408647927,-400.0,0.00024657,3]
[386578962,1758408647938,-400.0,0.00024657,3]
[386578963,1758408647948,-400.0,0.00024657,3]
[386578964,1758408647959,-400.0,0.00024657,3]
[386578965,1758408647969,-176.99284976,0.00024657,3]
[386578966,1758408647979,-400.0,0.00024657,3]
[386578967,1758408647991,-400.0,0.00024657,3]
[386578968,1758408648001,-400.0,0.00024657,3]
[386578969,1758408648011,-400.0,0.00024657,3]
[386578970,1758408648021,-434.78,0.00024657,3]
[386578971,1758408648031,-400.0,0.00024657,3]
[386578972,1758408648042,-400.0,0.00024657,3]
[386578973,1758408648053,-1087.82,0.00024657,3]
[386578974,1758408648063,-400.0,0.00024657,3]
[386578975,1758408648074,-400.0,0.00024657,3]
[386578976,1758408648084,-400.0,0.00024657,3]
[386578977,1758408648093,-400.0,0.00024657,3]
[386578978,1758408648103,-1154.0,0.00024657,3]
[386578979,1758408648113,-400.0,0.00024657,3]
[386578980,1758408648122,-403.01795082,0.00024657,3]
[386578981,1758408648132,-400.0,0.00024657,3]
[386578982,1758408648142,-400.0,0.00024657,3]
[386578983,1758408648152,-400.0,0.00024657,3]
[386578984,1758408648162,-400.0,0.00024657,3]
[386578985,1758408648172,-400.0,0.00024657,3]
[386578986,1758408648181,-400.0,0.00024657,3]
[386578987,1758408648191,-400.0,0.00024657,3]
[386578988,1758408648201,-400.0,0.00024657,3]
[386578989,1758408648210,-400.0,0.00024657,3]
[386578990,1758408648220,-400.0,0.00024657,3]
[386578991,1758408648230,-400.0,0.00024657,3]
[386578992,1758408648240,-400.0,0.00024657,3]
[386578993,1758408648250,-300.0,0.00024657,3]
[386578994,1758408648259,-400.0,0.00024657,3]
[386578995,1758408648269,-400.0,0.00024657,3]
[386578996,1758408648279,-400.0,0.00024657,3]
[386578997,1758408648288,-400.0,0.00024657,3]
[386578998,1758408648299,-400.0,0.00024657,3]
[386578999,1758408648309,-400.0,0.00024657,3]
[386579000,1758408648318,-400.0,0.00024657,3]
[386579001,1758408648328,-400.0,0.00024657,3]
[386579002,1758408648337,-493.95,0.00024657,3]
[386579003,1758408648347,-400.0,0.00024657,3]
[386579004,1758408648357,-400.0,0.00024657,3]
[386579005,1758408648367,-400.0,0.00024657,3]
[386579006,1758408648377,-400.0,0.00024657,3]
[386579007,1758408648387,-400.0,0.00024657,3]
[386579008,1758408648397,-479.47,0.00024657,3]
[386579009,1758408648407,-400.0,0.00024657,3]
[386579010,1758408648416,-400.0,0.00024657,3]
[386579011,1758408648426,-400.0,0.00024657,3]
[386579012,1758408648435,-400.0,0.00024657,3]
[386579013,1758408648445,-400.0,0.00024657,3]
[386579014,1758408648455,-400.0,0.00024657,3]
[386579015,1758408648464,-400.0,0.00024657,3]
[386579016,1758408648475,-500.0,0.00024657,3]
[386579017,1758408648484,-500.0,0.00024657,3]
[386579018,1758408648494,-500.0,0.00024657,3]
[386579019,1758408648504,-400.0,0.00024657,3]
[386579020,1758408648514,-400.0,0.00024657,3]
[386579021,1758408648524,-400.0,0.00024657,3]
[386579022,1758408648534,-400.0,0.00024657,3]
[386579023,1758408648543,-335.57196342,0.00024657,3]
[386579024,1758408648553,-534.24,0.00024657,3]
[386579025,1758408648562,-400.0,0.00024657,3]
[386579026,1758408648571,-400.0,0.00024657,3]
[386579027,1758408648581,-462.23,0.00024657,3]
[386579028,1758408648590,-1025.88,0.00024657,3]
[386579029,1758408648599,-646.26,0.00024657,3]
[386579030,1758408648608,-400.0,0.00024657,3]
[386579031,1758408648618,-1401.05,0.00024657,3]
[386579032,1758408648628,-400.0,0.00024657,3]
[386579033,1758408648637,-400.0,0.00024657,3]
[386579034,1758408648646,-400.0,0.00024657,3]
[386579035,1758408648656,-400.0,0.00024657,3]